bitfinex/quotes_SOLUSD_20250706
["timestamp","ask_amount","ask_price","bid_price","bid_amount"]
[1751808810605,6.99416686,150.11,150.1,6.66222518]
[1751808810784,6.99416686,150.11,150.05,32.17437805]
[1751808810785,6.99416686,150.11,150.07,6.663557]
[1751808810981,6.99416686,150.08,150.07,6.663557]
[1751808811184,7.43230857,150.14,150.03,6.3059]
[1751808811185,6.66109772,150.13,150.04,6.66488936]
[1751808811486,6.66109772,150.13,150.05,26.0]
[1751808811679,6.99416686,150.08,150.05,26.0]
[1751808811999,7.43230856,150.12,150.04,23.32711276]
[1751808812297,6.99416686,150.08,150.04,49.32711276]
[1751808812496,6.99416686,150.08,150.04,32.66488936]
[1751808813007,6.99416686,150.07,150.04,6.66488936]
[1751808813203,6.99416686,150.08,150.04,6.66488936]
[1751808813579,6.66098273,150.13,150.04,6.66488936]
[1751808813799,6.99416686,150.12,150.05,32.5861]
[1751808813989,6.99416686,150.12,150.05,39.58026686]
[1751808814381,6.99416686,150.12,150.06,6.99416686]
[1751808814803,6.99416686,150.12,150.07,6.663557]
[1751808815303,7.44093614,150.14,150.07,6.663557]
[1751808815474,14.10109441,150.15,150.07,6.663557]
[1751808815679,6.99416686,150.13,150.07,13.65772386]
[1751808815903,6.99416686,150.13,150.07,30.31661637]
[1751808816295,6.99416686,150.12,150.07,6.663557]
[1751808816784,6.66093432,150.13,150.06,6.66400106]
[1751808816983,6.99416686,150.11,150.06,6.66400106]
[1751808817506,6.66000666,150.15,150.06,13.65816792]
[1751808817705,6.99416686,150.12,150.06,13.65816792]
[1751808818001,6.99416686,150.14,150.08,6.99416686]
[1751808818984,6.99416686,150.14,150.09,6.66266906]
[1751808820199,18.05219427,150.2,150.09,8.32456906]
[1751808820200,1.4068093,150.2,150.09,8.32456906]
[1751808820405,6.99416686,150.17,150.12,26.0]
[1751808820817,6.99416686,150.18,150.12,32.99416686]
[1751808821120,1.4068093,150.2,150.13,13.65506075]
[1751808821294,6.99416686,150.19,150.13,29.52842861]
[1751808821498,6.99416686,150.19,150.13,36.52259547]
[1751808821689,1.4068093,150.2,150.13,36.52259547]
[1751808821889,6.99416686,150.19,150.13,36.52259547]
[1751808822089,6.99416686,150.18,150.13,12.87619389]
[1751808822402,6.99416686,150.17,150.13,12.87619389]
[1751808822805,1.4068093,150.2,150.14,6.99416686]
[1751808823004,8.40097616,150.2,150.15,6.66000666]
[1751808823209,1.4068093,150.2,150.16,6.99416686]
[1751808823402,1.4068093,150.2,150.18,6.99416686]
[1751808823823,1.4068093,150.2,150.19,26.94964886]
[1751808824136,4.74245493,150.31,150.28,6.3988]
[1751808824318,4.74245493,150.31,150.3,6.99416686]
[1751808824491,7.438244,150.4,150.34,44.64964886]
[1751808824819,7.40747671,150.47,150.37,18.64964886]
[1751808825034,6.6427272,150.55,150.46,6.99416686]
[1751808825218,87.641,150.58,150.45,6.64672648]
[1751808825219,7.40300939,150.54,150.48,6.99416686]
[1751808825392,5.47851995,150.62,150.45,23.26354269]
[1751808825716,55.06148893,150.66,150.45,23.26354269]
[1751808825717,7.36436939,150.61,150.45,23.26354269]
[1751808826019,6.99416686,150.59,150.49,18.64964886]
[1751808826315,18.80199262,150.72,150.55,6.99416686]
[1751808826316,6.99416686,150.62,150.55,6.99416686]
[1751808826515,6.441,150.72,150.56,26.0]
[1751808826698,6.99416686,150.68,150.59,6.99416686]
[1751808826897,9.9243,150.74,150.59,55.76338724]
[1751808827106,7.3205745,150.73,150.59,51.29019604]
[1751808827289,7.3205745,150.73,150.59,44.64964886]
[1751808827290,11.11373838,150.67,150.59,44.64964886]
[1751808827490,1.6243,150.74,150.59,26.0]
[1751808827701,1.6243,150.74,150.59,98.86393442]
[1751808828017,3.01582386,150.6,150.59,72.86393442]
[1751808828321,1.6243,150.74,150.59,72.86393442]
[1751808828322,1.6243,150.74,150.62,26.0]
[1751808828695,11.11373838,150.66,150.55,6.3523]
[1751808828919,26.0,150.71,150.59,18.64964886]
[1751808829218,8.25865609,150.74,150.59,51.2901194]
[1751808829403,16.77849485,150.67,150.59,55.06964886]
[1751808829716,26.0,150.69,150.55,18.64964886]
[1751808829917,26.0,150.69,150.54,18.64964886]
[1751808830103,26.0,150.7,150.57,35.42814371]
[1751808830307,16.77849485,150.65,150.59,16.77849485]
[1751808831008,8.28,150.73,150.59,16.77849485]
[1751808831207,6.63481953,150.72,150.62,16.77849485]
[1751808831396,16.77849485,150.7,150.64,16.77849485]
[1751808831907,16.77849485,150.7,150.56,36.46]
[1751808831908,16.77849485,150.73,150.67,16.77849485]
[1751808832105,1.4068093,150.79,150.69,16.77849485]
[1751808832319,16.77849485,150.76,150.68,18.64964886]
[1751808832618,8.0389154,150.79,150.68,18.64964886]
[1751808832619,1.4068093,150.79,150.71,18.64964886]
[1751808833119,16.77849485,150.77,150.7,16.77849485]
[1751808833420,24.61801237,150.79,150.66,8.28]
[1751808833597,16.77849485,150.72,150.66,25.05849485]
[1751808833922,16.77849485,150.72,150.66,16.77849485]
[1751808834094,24.61801237,150.79,150.66,16.77849485]
[1751808834291,16.77849485,150.68,150.62,16.77849485]
[1751808834907,26.0,150.75,150.61,35.42814371]
[1751808835102,26.0,150.75,150.6,26.92964886]
[1751808835103,16.77849485,150.66,150.6,8.28]
[1751808835309,16.77849485,150.66,150.58,18.64964886]
[1751808835310,16.77849485,150.67,150.58,8.28]
[1751808835517,6.63525977,150.71,150.6,16.77849485]
[1751808835518,23.22340919,150.71,150.6,16.77849485]
[1751808835704,23.41375462,150.71,150.65,16.77849485]
[1751808835900,6.63525977,150.71,150.65,16.77849485]
[1751808836108,16.77849485,150.7,150.62,18.64964886]
[1751808836407,16.77849485,150.7,150.61,26.0]
[1751808836408,16.77849485,150.7,150.64,16.77849485]
[1751808836599,16.77849485,150.7,150.61,26.0]
[1751808836600,16.77849485,150.68,150.62,42.77849485]
[1751808836935,6.63525977,150.71,150.66,16.77849485]
[1751808837121,23.41375462,150.71,150.63,18.64964886]
[1751808837419,0.03,150.68,150.63,18.64964886]
[1751808837602,0.03,150.68,150.62,42.77849485]
[1751808837804,16.77849485,150.67,150.62,26.0]
[1751808838008,16.80849485,150.68,150.62,26.0]
[1751808838202,1.4068093,150.79,150.67,35.42814371]
[1751808838401,1.4068093,150.79,150.77,16.77849485]
[1751808838602,1.4068093,150.79,150.7,36.5]
[1751808838809,16.77849485,150.78,150.71,34.28]
[1751808839000,8.03855732,150.79,150.71,34.28]
[1751808839215,24.81705217,150.79,150.72,16.77849485]
[1751808839524,24.81705217,150.79,150.71,34.28]
[1751808839717,8.03855732,150.79,150.71,40.91518974]
[1751808839916,8.03855732,150.79,150.73,16.77849485]
[1751808840117,24.81705217,150.79,150.71,26.0]
[1751808840323,16.77849485,150.75,150.69,26.0]
[1751808840624,16.77849485,150.75,150.69,42.77849485]
[1751808840830,16.77849485,150.76,150.7,16.77849485]
[1751808841327,6.63349917,150.75,150.69,16.77849485]
[1751808841516,6.63349917,150.75,150.7,16.77849485]
[1751808841913,6.63306461,150.76,150.7,16.77849485]
[1751808842224,23.41155946,150.76,150.7,16.77849485]
[1751808842411,23.21571252,150.76,150.67,26.0]
[1751808842600,16.77849485,150.7,150.64,8.28]
[1751808842806,23.21571252,150.76,150.64,8.28]
[1751808843138,6.63834306,150.64,150.57,8.28]
[1751808843343,23.41683791,150.64,150.58,16.77849485]
[1751808843637,6.63349917,150.75,150.59,20.15458814]
[1751808843803,1.4068093,150.79,150.75,44.64964886]
[1751808844006,1.4068093,150.79,150.77,16.77849485]
[1751808844617,1.4068093,150.79,150.78,16.77849485]
[1751808845017,1.4068093,150.79,150.78,35.42814371]
[1751808845220,1.4068093,150.79,150.78,18.64964886]
[1751808845428,1.4068093,150.79,150.78,26.0]
[1751808845719,1.4068093,150.79,150.78,42.77849485]
[1751808845917,1.4068093,150.79,150.78,16.77849485]
[1751808846229,1.4068093,150.79,150.72,16.77849485]
[1751808846230,24.81717164,150.79,150.72,16.77849485]
[1751808846439,16.77849485,150.78,150.71,16.77849485]
[1751808846806,24.61802555,150.79,150.71,16.77849485]
[1751808847011,41.3965204,150.79,150.73,16.77849485]
[1751808847712,16.77849485,150.78,150.73,16.77849485]
[1751808847913,8.03867679,150.79,150.74,16.77849485]
[1751808848115,8.03867679,150.79,150.72,18.64964886]
[1751808848319,16.77849485,150.76,150.67,8.42]
[1751808848515,16.77849485,150.68,150.56,8.42]
[1751808848731,1.6151,150.75,150.56,8.42]
[1751808848732,27.6151,150.75,150.62,16.77849485]
[1751808848914,27.6151,150.75,150.65,16.77849485]
[1751808849109,16.77849485,150.71,150.57,6.64142923]
[1751808849469,16.77849485,150.67,150.56,8.42]
[1751808849733,16.77849485,150.63,150.51,8.42]
[1751808849929,16.77849485,150.61,150.55,16.77849485]
[1751808850112,26.0,150.67,150.54,26.0]
[1751808850314,16.77849485,150.63,150.57,16.77849485]
[1751808850731,16.77849485,150.63,150.56,16.77849485]
[1751808851042,26.0,150.67,150.51,15.06391168]
[1751808851228,16.77849485,150.62,150.56,16.77849485]
[1751808851426,16.77849485,150.61,150.51,8.42]
[1751808851745,23.23111641,150.66,150.57,16.77849485]
[1751808851956,23.23111641,150.66,150.61,16.77849485]
[1751808851957,6.63746183,150.66,150.61,16.77849485]
[1751808852243,6.63746183,150.66,150.58,44.64964886]
[1751808852430,6.63746183,150.66,150.63,16.77849485]
[1751808852643,6.63658083,150.68,150.63,16.77849485]
[1751808853264,16.77849485,150.7,150.58,44.64964886]
[1751808853265,6.63570006,150.7,150.64,16.77849485]
[1751808853642,23.41419491,150.7,150.64,16.77849485]
[1751808853840,23.22495022,150.7,150.6,18.64964886]
[1751808854180,16.77849485,150.68,150.6,18.64964886]
[1751808854339,16.77849485,150.67,150.57,6.64104718]
[1751808854544,23.22495022,150.7,150.6,16.77849485]
[1751808854748,16.77849485,150.66,150.6,16.77849485]
[1751808855370,23.41639727,150.65,150.58,44.64964886]
[1751808855570,16.77849485,150.63,150.54,44.64964886]
[1751808855777,16.77849485,150.63,150.57,16.77849485]
[1751808856069,16.77849485,150.63,150.54,44.64964886]
[1751808856371,23.41639727,150.65,150.59,16.77849485]
[1751808856569,23.41639727,150.65,150.6,16.77849485]
[1751808856570,6.63790242,150.65,150.6,16.77849485]
[1751808856942,6.63790242,150.65,150.59,16.77849485]
[1751808857246,6.63790242,150.65,150.58,16.77849485]
[1751808857551,6.63658083,150.68,150.63,16.77849485]
[1751808857859,16.77849485,150.7,150.64,16.77849485]
[1751808858265,23.21921189,150.74,150.64,16.77849485]
[1751808858568,16.77849485,150.68,150.57,18.64964886]
[1751808858773,16.77849485,150.68,150.61,16.77849485]
[1751808859145,16.77849485,150.68,150.62,16.77849485]
[1751808859340,23.41499391,150.69,150.6,26.0]
[1751808859542,16.77849485,150.68,150.62,16.77849485]
[1751808859742,16.77849485,150.68,150.61,16.77849485]
[1751808860237,16.77849485,150.62,150.53,25.0275028]
[1751808860445,16.77849485,150.61,150.55,35.42814371]
[1751808860644,33.16969616,150.74,150.55,35.42814371]
[1751808860645,1.6151,150.75,150.58,26.0]
[1751808860948,1.6151,150.75,150.69,16.77849485]
[1751808861149,1.6151,150.75,150.7,16.77849485]
[1751808861472,1.6151,150.75,150.71,16.77849485]
[1751808861765,16.77849485,150.72,150.65,26.0]
[1751808862063,16.77849485,150.71,150.65,42.77849485]
[1751808862259,16.77849485,150.71,150.64,16.77849485]
[1751808862462,24.83241753,150.75,150.65,16.77849485]
[1751808862762,0.03,150.76,150.7,16.77849485]
[1751808862960,0.03,150.76,150.75,16.77849485]
[1751808863658,0.03,150.76,150.72,16.77849485]
[1751808863872,0.03,150.76,150.69,26.0]
[1751808863873,0.03,150.76,150.71,16.77849485]
[1751808864173,0.03,150.76,150.74,16.77849485]
[1751808864365,0.03,150.76,150.7,44.64964886]
[1751808864661,0.03,150.76,150.73,16.77849485]
[1751808865063,0.03,150.76,150.7,44.64964886]
[1751808865064,0.03,150.76,150.74,16.77849485]
[1751808865438,0.03,150.76,150.75,23.41199402]
[1751808865949,0.03,150.76,150.75,6.63349917]
[1751808866148,0.03,150.76,150.72,25.28446839]
[1751808866450,0.03,150.76,150.75,16.77849485]
[1751808866647,0.03,150.76,150.72,41.87151722]
[1751808866841,0.03,150.76,150.75,16.77849485]
[1751808867042,0.03,150.76,150.75,16.72463302]
[1751808867763,0.03,150.76,150.74,16.77849485]
[1751808867940,0.03,150.76,150.73,6.63437935]
[1751808868142,0.03,150.76,150.75,16.77849485]
[1751808868350,7.32772219,150.76,150.75,16.77849485]
[1751808868766,7.32772219,150.76,150.74,16.77849485]
[1751808868966,0.03,150.76,150.75,61.42814371]
[1751808869472,0.03,150.76,150.75,68.06164288]
[1751808870062,0.03,150.76,150.75,6.63349917]
[1751808870376,0.03,150.76,150.71,6.63525977]
[1751808870568,0.03,150.76,150.71,23.41375462]
[1751808870755,0.03,150.76,150.71,49.41375462]
[1751808870957,0.03,150.76,150.73,16.77849485]
[1751808871360,9.02517847,150.76,150.73,16.77849485]
[1751808871582,9.02517847,150.76,150.74,16.77849485]
[1751808871761,0.03,150.76,150.75,16.77849485]
[1751808871961,9.02517847,150.76,150.72,6.63481953]
[1751808872180,8.99517847,150.75,150.72,6.63481953]
[1751808872393,8.99517847,150.75,150.7,16.77849485]
[1751808872568,8.99517847,150.75,150.7,32.63570006]
[1751808872762,8.99517847,150.75,150.71,16.77849485]
[1751808872961,9.02517847,150.76,150.71,16.77849485]
[1751808873294,2.87153486,150.74,150.66,6.63746183]
[1751808873463,20.67812824,150.76,150.67,16.77849485]
[1751808873668,16.77849485,150.74,150.69,6.63614042]
[1751808874188,23.41212319,150.75,150.69,23.41463527]
[1751808874380,25.09554563,150.76,150.7,16.77849485]
[1751808874590,1.6839,150.76,150.71,16.77849485]
[1751808875275,1.6839,150.76,150.69,6.63614042]
[1751808875482,1.6839,150.76,150.71,16.77849485]
[1751808875782,1.6839,150.76,150.69,6.63614042]
[1751808875783,1.6839,150.76,150.69,32.63614042]
[1751808875989,1.6839,150.76,150.7,16.77849485]
[1751808876463,18.46239485,150.76,150.69,32.63614042]
[1751808876663,18.46239485,150.76,150.7,16.77849485]
[1751808876865,16.77849485,150.72,150.66,16.77849485]
[1751808877073,16.77849485,150.72,150.67,26.0]
[1751808877286,16.77849485,150.71,150.63,6.63878377]
[1751808877474,16.77849485,150.69,150.63,23.41727862]
[1751808877675,52.04113706,150.76,150.63,23.41727862]
[1751808877676,16.77849485,150.7,150.64,16.77849485]
[1751808877871,16.77849485,150.69,150.64,16.77849485]
[1751808878185,16.77849485,150.69,150.63,23.41727862]
[1751808878593,16.77849485,150.69,150.63,6.63878377]
[1751808878763,6.63485149,150.72,150.64,16.77849485]
[1751808878963,12.36099262,150.74,150.67,16.77849485]
[1751808879278,16.77849485,150.74,150.68,16.77849485]
[1751808879584,16.77849485,150.74,150.67,16.77849485]
[1751808879885,23.41331438,150.72,150.66,16.77849485]
[1751808880193,16.77849485,150.71,150.65,6.63790242]
[1751808880487,16.77849485,150.71,150.65,23.41639727]
[1751808880689,6.63481953,150.72,150.54,53.15288844]
[1751808880690,16.77849485,150.7,150.54,53.15288844]
[1751808880873,6.63481953,150.72,150.59,18.70964886]
[1751808881078,16.77849485,150.7,150.59,18.70964886]
[1751808881384,7.38609522,150.69,150.64,16.77849485]
[1751808881587,7.38609522,150.68,150.62,25.28887339]
[1751808881788,7.38609522,150.67,150.65,23.41623707]
[1751808882106,6.63576231,150.7,150.64,23.41679511]
[1751808882282,7.38669561,150.69,150.65,16.77849485]
[1751808882481,7.38669561,150.7,150.65,16.77849485]
[1751808882682,7.38669561,150.69,150.65,16.77849485]
[1751808882875,7.38669561,150.7,150.65,16.77849485]
[1751808883074,7.38669561,150.69,150.65,16.77849485]
[1751808883281,24.16519046,150.7,150.64,6.63830026]
[1751808883484,16.77849485,150.7,150.64,23.41679511]
[1751808884194,23.41426535,150.7,150.64,23.41679511]
[1751808884677,6.6357705,150.7,150.64,23.41679511]
[1751808884886,23.41426535,150.7,150.64,23.41679511]
[1751808885477,36.2839,150.76,150.65,16.77849485]
[1751808885680,16.77849485,150.71,150.64,6.63830026]
[1751808885875,7.38739839,150.75,150.66,16.77849485]
[1751808885876,23.21724709,150.75,150.66,16.77849485]
[1751808886093,23.21724709,150.75,150.68,16.77849485]
[1751808886094,7.3869724,150.74,150.68,16.77849485]
[1751808886590,7.3869724,150.74,150.67,26.0]
[1751808886768,0.03,150.76,150.73,16.77849485]
[1751808887193,0.03,150.76,150.74,16.77849485]
[1751808887397,0.03,150.76,150.74,23.41218119]
[1751808887592,0.03,150.76,150.75,16.77849485]
[1751808887794,0.03,150.76,150.72,16.77849485]
[1751808887987,0.03,150.76,150.71,6.63525977]
[1751808888184,0.03,150.76,150.71,23.41375462]
[1751808888502,0.03,150.76,150.72,16.77849485]
[1751808889003,0.03,150.76,150.71,6.63525977]
[1751808889374,0.03,150.76,150.71,23.41375462]
[1751808889577,0.03,150.76,150.72,16.77849485]
[1751808889887,0.03,150.76,150.71,23.41375462]
[1751808890189,0.03,150.76,150.71,6.63525977]
[1751808890402,0.03,150.76,150.71,23.41375462]
[1751808890605,0.03,150.76,150.73,16.77849485]
[1751808890973,0.03,150.76,150.72,16.77849485]
[1751808891582,0.03,150.76,150.75,16.77849485]
[1751808892482,1.4068093,150.79,150.78,16.77849485]
[1751808892877,1.4068093,150.79,150.77,16.77849485]
[1751808893082,1.4068093,150.79,150.78,16.77849485]
[1751808893488,1.4068093,150.79,150.77,6.63261922]
[1751808893704,1.4068093,150.79,150.78,16.77849485]
[1751808893996,1.5633,150.87,150.79,26.0]
[1751808894190,0.1,150.92,150.83,16.77849485]
[1751808894191,1.6633,150.92,150.83,16.77849485]
[1751808894393,16.77849485,150.9,150.83,16.77849485]
[1751808894589,28.83818006,150.89,150.83,16.77849485]
[1751808894793,21.46091871,150.89,150.83,16.77849485]
[1751808895182,16.77849485,150.88,150.81,6.63086002]
[1751808895377,16.77849485,150.86,150.81,6.63086002]
[1751808895788,0.47307983,150.92,150.81,6.63086002]
[1751808895789,16.77849485,150.87,150.81,23.40935487]
[1751808895999,0.9960796,150.86,150.81,6.63086002]
[1751808896313,17.77457445,150.86,150.81,6.63086002]
[1751808896489,0.9960796,150.86,150.81,23.40935487]
[1751808896681,0.9960796,150.86,150.82,16.77849485]
[1751808896885,26.0,150.96,150.81,6.63086002]
[1751808896886,12.36099262,151.07,150.88,26.0]
[1751808897100,1.3746777,151.09,151.04,16.77849485]
[1751808897299,1.3746777,151.09,151.06,16.77849485]
[1751808897482,1.3746777,151.09,151.03,26.0]
[1751808897678,1.3746777,151.09,151.0,18.64964886]
[1751808897880,16.77849485,151.08,151.02,16.77849485]
[1751808898105,7.3464371,151.07,150.97,34.6]
[1751808898287,1.3746777,151.09,151.03,16.77849485]
[1751808898486,1.3746777,151.09,150.98,18.64964886]
[1751808898487,1.3746777,151.09,151.01,26.0]
[1751808898806,1.3746777,151.09,150.99,16.55711785]
[1751808898807,16.77849485,151.03,150.97,8.6]
[1751808899104,7.99334597,151.09,150.82,18.65547688]
[1751808899105,16.77849485,150.99,150.91,8.6]
[1751808899306,27.24964886,151.08,150.91,32.00494785]
[1751808899307,16.77849485,150.97,150.91,32.00494785]
[1751808899481,16.77849485,150.99,150.92,16.77849485]
[1751808899884,16.77849485,150.96,150.91,8.6]
[1751808900096,16.77849485,150.96,150.89,16.77849485]
[1751808900306,1.5633,151.02,150.85,16.77849485]
[1751808900307,16.77849485,150.91,150.85,16.77849485]
[1751808900610,16.5598101,150.97,150.85,16.77849485]
[1751808900793,6.62339382,150.98,150.84,23.20323079]
[1751808900998,13.94977201,151.01,150.91,16.77849485]
[1751808901305,6.2075,151.03,150.98,16.77849485]
[1751808901509,16.77849485,151.02,150.93,26.0]
[1751808901807,16.77849485,150.99,150.93,42.77849485]
[1751808902112,12.82893288,151.03,150.93,42.77849485]
[1751808902307,12.82893288,151.03,150.95,16.77849485]
[1751808902608,23.39992773,151.03,150.97,16.77849485]
[1751808902792,6.62073259,151.05,150.97,16.77849485]
[1751808903108,6.62073259,151.05,150.94,6.62514906]
[1751808903109,16.77849485,151.02,150.94,6.62514906]
[1751808903285,16.77849485,151.03,150.94,6.62514906]
[1751808903480,6.62073259,151.05,150.97,16.77849485]
[1751808903681,1.3746777,151.09,151.05,26.0]
[1751808903886,1.3746777,151.09,151.08,16.77849485]
[1751808904105,1.3746777,151.09,151.08,42.77849485]
[1751808904508,1.3746777,151.09,151.08,49.39750464]
[1751808904904,1.3746777,151.09,151.08,54.70000446]
[1751808905302,1.3746777,151.09,151.05,26.0]
[1751808905502,1.3746777,151.09,151.04,26.0]
[1751808905812,1.3746777,151.09,151.0,8.8]
[1751808906020,7.99329101,151.09,151.0,8.8]
[1751808906316,7.99329101,151.09,150.95,37.62]
[1751808906317,7.27591918,151.08,150.97,22.08099467]
[1751808906514,22.08099467,151.04,150.98,22.08099467]
[1751808906722,22.08099467,151.03,150.92,8.8]
[1751808906892,22.08099467,151.04,150.98,22.08099467]
[1751808907093,23.17145242,151.05,150.89,6.62734442]
[1751808907290,23.17145242,151.05,150.93,22.08099467]
[1751808907291,22.08099467,150.99,150.93,22.08099467]
[1751808907490,23.17145242,151.05,150.94,22.08099467]
[1751808907698,18.64964886,151.03,150.89,6.62734442]
[1751808907915,22.08099467,150.98,150.91,22.08099467]
[1751808908394,18.64964886,151.03,150.91,22.08099467]
[1751808908595,23.17727302,151.01,150.91,22.08099467]
[1751808908795,22.08099467,150.98,150.91,22.08099467]
[1751808908988,22.08099467,150.98,150.92,22.08099467]
[1751808909198,22.08099467,150.95,150.84,6.62954123]
[1751808909396,23.17727302,151.01,150.91,22.08099467]
[1751808909397,22.08099467,150.97,150.91,22.08099467]
[1751808909731,22.08099467,150.98,150.91,22.08099467]
[1751808909912,6.622078,151.01,150.95,22.08099467]
[1751808910302,6.622078,151.01,150.96,22.08099467]
[1751808910505,28.7004426,151.07,151.0,22.08099467]
[1751808910704,8.8,151.08,151.01,22.08099467]
[1751808910916,30.88099467,151.08,150.99,6.62293872]
[1751808911129,15.41909193,151.08,150.96,18.64964886]
[1751808911324,1.4046777,151.09,150.99,44.64964886]
[1751808911628,1.4046777,151.09,151.05,26.0]
[1751808911830,1.4046777,151.09,151.02,18.64964886]
[1751808912008,1.4046777,151.09,151.06,22.08099467]
[1751808912526,1e-08,151.09,151.08,22.08099467]
[1751808912733,1e-08,151.09,151.08,28.70000446]
[1751808914411,1e-08,151.09,151.08,22.08099467]
[1751808916529,1e-08,151.09,151.05,6.62031865]
[1751808916825,1e-08,151.09,151.07,22.08099467]
[1751808917211,1e-08,151.09,151.05,6.62031865]
[1751808917414,1e-08,151.09,151.07,22.08099467]
[1751808917610,1e-08,151.09,151.05,6.62031865]
[1751808917827,22.08099467,151.08,150.98,6.62339382]
[1751808918029,22.08099467,151.03,150.97,22.08099467]
[1751808918329,22.08099467,151.08,151.01,22.08099467]
[1751808918507,22.08099467,151.07,150.96,18.64964886]
[1751808918707,1e-08,151.09,151.01,22.08099467]
[1751808919021,22.08099467,151.07,151.01,22.08099467]
[1751808919204,28.70038437,151.08,151.01,22.08099467]
[1751808919714,6.6193897,151.08,151.01,22.08099467]
[1751808919918,28.70038437,151.08,151.02,22.08099467]
[1751808920223,22.08099467,151.07,151.01,22.08099467]
[1751808920534,6.61858062,151.09,151.03,22.08099467]
[1751808920710,1e-08,151.09,151.04,22.08099467]
[1751808921025,1e-08,151.09,151.03,22.08099467]
[1751808921225,1e-08,151.09,151.04,22.08099467]
[1751808921437,22.08099467,151.08,151.0,32.62251655]
[1751808921628,22.08099467,151.08,151.02,22.08099467]
[1751808921803,22.08099468,151.09,151.03,22.08099467]
[1751808922002,22.08099468,151.09,151.0,32.62251655]
[1751808922421,6.61895022,151.09,151.02,22.08099467]
[1751808922618,28.69994489,151.09,151.03,22.08099467]
[1751808923226,22.08099467,151.08,151.0,32.62251655]
[1751808923537,1e-08,151.09,151.03,22.08099467]
[1751808923832,1e-08,151.09,151.06,22.08099467]
[1751808924041,1e-08,151.09,151.08,22.08099467]
[1751808924928,1e-08,151.09,151.06,18.64964886]
[1751808925126,1e-08,151.09,151.08,22.08099467]
[1751808925313,1e-08,151.09,151.08,48.08099467]
[1751808925518,1e-08,151.09,151.08,54.70000446]
[1751808925716,1e-08,151.09,151.08,32.61900979]
[1751808925919,1e-08,151.09,151.08,28.70000446]
[1751808926540,1e-08,151.09,151.08,47.34965332]
[1751808928521,1e-08,151.09,151.08,73.34965332]
[1751808928919,1e-08,151.09,151.08,25.26865865]
[1751808929120,1e-08,151.09,151.08,47.34965332]
[1751808929819,1e-08,151.09,151.08,73.34965332]
[1751808930340,1e-08,151.09,151.08,28.70000446]
[1751808930543,1e-08,151.09,151.08,6.61900979]
[1751808930923,1e-08,151.09,151.08,49.28425273]
[1751808931653,1e-08,151.09,151.08,32.61900979]
[1751808931828,1e-08,151.09,151.08,49.28425273]
[1751808932138,1e-08,151.09,151.02,25.35329487]
[1751808932437,1e-08,151.09,151.06,16.66524294]
[1751808932739,1e-08,151.09,151.05,16.66524294]
[1751808933043,1e-08,151.09,151.02,8.8]
[1751808933044,16.66524295,151.09,151.02,8.8]
[1751808933334,13.89710082,151.08,151.06,0.06]
[1751808933537,16.66524294,151.07,150.94,8.8]
[1751808933713,7.27931036,151.06,150.98,16.66524294]
[1751808933916,16.66524294,151.0,150.92,6.62602703]
[1751808934116,10.69412935,151.06,150.93,16.66524294]
[1751808934334,16.66524294,151.0,150.93,16.66524294]
[1751808934544,16.66524294,151.0,150.94,16.66524294]
[1751808934734,16.66524294,151.0,150.93,16.66524294]
[1751808934911,16.66524294,151.0,150.92,32.62602703]
[1751808934912,16.66524294,150.98,150.92,6.62602703]
[1751808935319,6.62120108,151.03,150.93,16.66524294]
[1751808935544,16.66524294,151.0,150.94,16.66524294]
[1751808935746,16.66524294,151.0,150.92,6.62602703]
[1751808935917,16.66524294,150.99,150.93,16.66524294]
[1751808936640,16.66524294,150.99,150.91,42.56579667]
[1751808936839,16.66524294,150.99,150.93,16.66524294]
[1751808937720,16.66524294,150.97,150.91,42.66524294]
[1751808937922,16.66524294,150.97,150.9,23.29214817]
[1751808939145,16.66524294,150.97,150.91,16.66524294]
[1751808939532,16.66524294,150.97,150.9,6.62690523]
[1751808939917,6.0677,151.01,150.93,16.66524294]
[1751808940228,16.66524294,150.99,150.93,16.66524294]
[1751808940533,7.34548177,150.98,150.9,23.19416831]
[1751808940735,16.66524294,150.99,150.93,16.66524294]
[1751808940935,7.35310004,150.98,150.93,16.66524294]
[1751808941145,7.35308965,150.98,150.9,23.19416831]
[1751808941449,7.35308965,150.97,150.93,16.66524294]
[1751808941656,7.36298907,150.98,150.96,42.66524294]
[1751808941840,1.5976,151.06,150.97,16.66524294]
[1751808942033,1.5976,151.06,151.01,16.66524294]
[1751808942034,7.36075874,151.05,151.01,16.66524294]
[1751808942250,7.36075874,151.04,151.01,16.66524294]
[1751808942430,7.36075874,151.03,150.95,18.64964886]
[1751808942747,7.36075874,151.02,150.99,16.66524294]
[1751808942948,30.64677251,151.04,150.94,62.80222253]
[1751808943252,7.36123679,151.03,150.98,16.66524294]